bitfinex/quotes_ETHUSD_20240729
["timestamp","ask_amount","ask_price","bid_price","bid_amount"]
[1722213911147,3.641998,3298.5,3297.3,2.3352]
[1722213911148,1.216628,3298.5,3298.0,2.7]
[1722213911486,1.216628,3298.5,3298.1,0.07731237]
[1722213911774,2.42512,3298.8,3298.1,0.07731237]
[1722213911983,2.42527,3298.6,3298.1,0.07731237]
[1722213912267,2.42534,3298.5,3298.1,0.07731237]
[1722213912474,2.42514,3298.8,3298.1,0.07731237]
[1722213912862,2.42532,3298.6,3297.6,2.7]
[1722213913049,2.42542,3298.4,3298.2,0.07713255]
[1722213913390,2.42532,3298.6,3297.6,2.7]
[1722213913669,2.42532,3298.6,3297.7,0.34741922]
[1722213913878,2.42514,3298.8,3297.7,0.34741922]
[1722213914089,2.97525,3298.7,3297.7,0.34741922]
[1722213914264,2.97524,3298.7,3297.7,0.34741922]
[1722213914782,2.42535,3298.5,3297.7,0.34741922]
[1722213915489,2.42542,3298.4,3297.7,0.34741922]
[1722213915696,2.42546,3298.4,3297.7,0.34741922]
[1722213916063,3.272734,3298.7,3297.7,0.34741922]
[1722213916272,2.4253,3298.6,3297.7,0.34741922]
[1722213916613,0.55,3298.5,3297.7,0.34741922]
[1722213916790,2.42556,3298.2,3297.7,0.07741922]
[1722213917099,2.42566,3298.1,3297.7,0.07741922]
[1722213917250,2.42571,3298.0,3297.7,0.07741922]
[1722213917694,2.74261585,3297.9,3297.7,0.07741922]
[1722213917989,2.42594,3297.7,3297.3,3.73976263]
[1722213918199,2.42594,3297.7,3297.2,3.73976263]
[1722213918505,2.4263,3297.2,3297.1,0.00087]
[1722213918802,2.42627,3297.3,3297.1,0.00087]
[1722213919106,2.4263,3297.2,3297.1,0.00087]
[1722213919703,0.242627,3297.3,3297.1,0.00087]
[1722213919860,2.42603,3297.6,3297.1,0.00087]
[1722213920191,0.55,3297.5,3297.1,0.00087]
[1722213920613,2.42593,3297.7,3297.1,0.00087]
[1722213920906,0.55,3297.6,3297.1,0.00087]
[1722213921075,2.97602,3297.6,3297.1,0.00087]
[1722213921276,3.516215,3297.6,3297.1,0.00087]
[1722213921455,2.4261,3297.5,3297.1,0.00087]
[1722213921660,1.090195,3297.6,3297.1,0.00087]
[1722213921661,2.42616,3297.4,3297.1,0.00087]
[1722213921904,3.516235,3297.6,3297.1,0.00087]
[1722213922403,2.42608,3297.5,3297.1,0.00087]
[1722213922604,2.42616,3297.4,3297.1,0.00087]
[1722213922785,0.3516275,3297.5,3297.1,0.00087]
[1722213922999,2.97602,3297.6,3297.1,0.00087]
[1722213923177,2.42609,3297.5,3297.1,0.00087]
[1722213923371,2.976,3297.6,3297.1,0.00087]
[1722213924676,0.55,3297.6,3297.1,0.00087]
[1722213924996,2.97597,3297.7,3297.1,0.00087]
[1722213925213,0.55,3297.7,3297.1,0.00087]
[1722213925726,0.31677585,3297.9,3297.2,5.1918]
[1722213926279,0.31677585,3297.9,3297.6,2.7]
[1722213927605,0.31677585,3297.9,3297.2,5.1918]
[1722213927800,2.74255585,3297.9,3297.3,0.07259357]
[1722213928231,0.31677585,3297.9,3297.3,0.07259357]
[1722213929002,2.42602,3297.6,3297.3,0.07259357]
[1722213929246,2.97586,3297.8,3297.1,0.00087]
[1722213929545,2.97586,3297.8,3297.4,0.07255637]
[1722213929762,1.34412247,3297.8,3297.1,0.00087]
[1722213930053,0.31677585,3297.9,3297.1,0.00087]
[1722213930363,0.31677585,3297.9,3297.2,0.07268965]
[1722213930570,0.31677585,3297.9,3297.5,2.4754]
[1722213930856,0.31677585,3297.9,3297.6,0.07243232]
[1722213931855,2.74255585,3297.9,3297.6,0.07243232]
[1722213932768,0.31677585,3297.9,3297.6,0.07243232]
[1722213933761,3.03786864,3297.9,3297.6,0.07243232]
[1722213933937,2.42588,3297.8,3297.6,0.07243232]
[1722213934466,2.54117967,3297.9,3297.6,0.07243232]
[1722213934965,2.74259585,3297.9,3297.6,0.07243232]
[1722213935121,4.96705766,3297.9,3297.6,0.07243232]
[1722213935457,0.49670577,3297.8,3297.6,0.07243232]
[1722213935658,2.74259585,3297.9,3297.6,0.07243232]
[1722213936032,4.96705766,3297.9,3297.6,0.07243232]
[1722213936249,2.42593,3297.7,3297.6,0.07243232]
[1722213936666,2.97593,3297.7,3297.6,0.07243232]
[1722213936819,3.52764677,3297.7,3297.6,0.07243232]
[1722213937223,2.42603,3297.6,3297.2,3.73976263]
[1722213937468,2.42603,3297.6,3297.3,0.07259539]
[1722213937629,2.42608,3297.5,3297.3,0.07259539]
[1722213937836,2.42608,3297.5,3297.2,3.73976263]
[1722213938047,2.42622,3297.3,3297.2,3.73976263]
[1722213938462,4.85244,3297.3,3297.2,3.73976263]
[1722213938669,5.40244,3297.3,3297.2,3.73976263]
[1722213938971,7.62716492,3297.3,3297.2,3.73976263]
[1722213939145,5.40244,3297.3,3297.2,3.73976263]
[1722213939334,1.17045045,3297.3,3297.2,3.73976263]
[1722213939534,0.55,3297.3,3297.2,3.73976263]
[1722213940066,0.31685351,3297.5,3297.2,3.73976263]
[1722213942071,2.74297351,3297.5,3297.2,3.73976263]
[1722213942370,2.42618,3297.4,3297.2,3.73976263]
[1722213942547,2.42622,3297.3,3297.2,3.73976263]
[1722213942749,2.97622,3297.3,3297.2,3.73976263]
[1722213943072,2.97622,3297.3,3297.2,0.07266939]
[1722213943569,0.55,3297.3,3297.2,0.07266939]
[1722213943932,0.31685351,3297.5,3297.2,0.07266939]
[1722213945243,0.31685351,3297.5,3297.4,5.1712]
[1722213945479,2.22476687,3298.0,3297.4,5.1712]
[1722213945699,2.22476687,3298.0,3297.4,5.24375452]
[1722213945700,0.31687557,3297.9,3297.4,5.24375452]
[1722213949837,0.31687557,3297.9,3297.4,7.66989452]
[1722213950041,0.31687557,3297.9,3297.4,5.24375452]
[1722213950286,2.42528,3298.6,3297.4,5.24375452]
[1722213950287,2.22449473,3298.6,3297.8,2.7]
[1722213950448,0.3168981,3298.4,3297.8,2.7]
[1722213950642,0.3168981,3298.4,3297.9,0.07207418]
[1722213953887,0.3168981,3298.4,3298.0,2.3814]
[1722213954075,0.3168981,3298.4,3298.0,2.89674742]
[1722213954276,0.3168981,3298.4,3298.1,0.07194096]
[1722213954851,0.3168981,3298.4,3298.1,3.81170359]
[1722213955411,0.3168981,3298.4,3298.2,2.7]
[1722213955685,0.3168981,3298.4,3298.3,0.07180775]
[1722213957310,4.89225,3299.3,3298.3,5.62005479]
[1722213957311,2.22505053,3299.0,3298.3,5.62005479]
[1722213957462,2.62834094,3299.3,3299.1,2.7]
[1722213957463,2.22505053,3299.3,3299.1,2.7]
[1722213957668,2.22463067,3299.6,3299.1,2.7]
[1722213957983,2.5415716,3299.8,3299.2,0.07108897]
[1722213958187,0.31694093,3299.8,3299.2,0.07108897]
[1722213960091,2.74133093,3299.8,3299.2,0.07108897]
[1722213960521,0.31694093,3299.8,3299.5,2.7]
[1722213960994,2.62339535,3300.4,3299.5,2.7]
[1722213960996,2.22086379,3300.3,3299.6,0.07041638]
[1722213961195,2.42389,3300.5,3299.9,2.7]
[1722213961196,2.22086379,3300.4,3299.9,2.7]
[1722213961499,4.7726,3300.9,3299.7,2.3695]
[1722213961500,4.64446379,3300.9,3300.3,2.7]
[1722213961669,2.42365,3300.8,3300.3,2.7]
[1722213961874,2.42365,3300.8,3300.4,0.0698382]
[1722213962471,2.98282478,3301.0,3300.4,0.0698382]
[1722213962876,2.42358,3300.9,3300.4,0.0698382]
[1722213963355,2.4238,3300.6,3300.4,0.0698382]
[1722213963554,2.42387,3300.5,3300.4,0.0698382]
[1722213964103,2.42387,3300.5,3300.1,3.73976263]
[1722213964281,2.42387,3300.5,3300.4,0.06873576]
[1722213964487,0.484746,3300.6,3300.1,3.73976263]
[1722213964793,2.42367,3300.8,3300.4,0.06873576]
[1722213964992,2.42367,3300.8,3300.1,3.73976263]
[1722213965201,2.42367,3300.8,3300.5,0.06861737]
[1722213965398,2.42358,3300.9,3300.1,3.73976263]
[1722213965601,0.55,3300.8,3300.6,0.06855086]
[1722213965754,2.42389,3300.5,3300.1,3.73976263]
[1722213966271,2.42367,3300.8,3300.1,3.73976263]
[1722213966454,2.42385,3300.6,3300.1,3.73976263]
[1722213967350,2.42395,3300.4,3300.1,3.73976263]
[1722213968222,2.42385,3300.6,3300.1,3.73976263]
[1722213968378,0.55,3300.5,3300.1,3.73976263]
[1722213968718,2.97388,3300.5,3300.1,3.73976263]
[1722213968929,0.297388,3300.4,3300.1,3.73976263]
[1722213969695,2.721338,3300.4,3300.1,3.73976263]
[1722213970067,0.297388,3300.4,3300.1,3.73976263]
[1722213970310,2.4238,3300.6,3300.1,3.73976263]
[1722213970608,2.721087,3300.7,3300.1,3.73976263]
[1722213970814,2.42392,3300.5,3300.1,3.73976263]
[1722213970983,2.42373,3300.7,3300.1,3.73976263]
[1722213971186,2.42394,3300.4,3300.1,3.73976263]
[1722213971389,2.42399,3300.4,3300.1,3.73976263]
[1722213971636,2.908772,3300.4,3300.1,3.73976263]
[1722213971915,2.42409,3300.2,3300.1,3.73976263]
[1722213972126,2.42409,3300.2,3299.7,3.73976263]
[1722213972127,2.4243,3300.0,3299.7,3.73976263]
[1722213972292,2.42429,3300.0,3299.7,3.73976263]
[1722213972694,2.42438,3299.8,3299.7,3.73976263]
[1722213973005,5.333627,3299.8,3299.7,3.73976263]
[1722213973180,4.8492,3299.5,3299.4,3.73976263]
[1722213973379,2.42449,3299.7,3299.1,3.73976263]
[1722213973717,2.977667,3299.8,3299.1,3.73976263]
[1722213973718,2.9647457,3299.6,3299.1,3.73976263]
[1722213974082,2.42473,3299.4,3299.1,3.73976263]
[1722213974279,2.42482,3299.3,3299.1,3.73976263]
[1722213974706,2.42469,3299.4,3299.1,3.73976263]
[1722213975133,2.42483,3299.2,3299.1,3.73976263]
[1722213975429,5.334612,3299.2,3299.1,3.73976263]
[1722213975718,2.42483,3299.2,3299.1,3.73976263]
[1722213976119,0.5402157,3299.6,3299.1,3.73976263]
[1722213976332,2.42473,3299.4,3299.1,3.73976263]
[1722213976476,2.97476,3299.3,3299.1,3.73976263]
[1722213976675,2.42483,3299.2,3299.1,3.73976263]
[1722213978631,2.42483,3299.2,3298.8,3.73976263]
[1722213979091,2.42485,3299.2,3298.8,3.73976263]
[1722213979427,2.42487,3299.2,3298.8,3.73976263]
[1722213979583,2.42505,3298.9,3298.8,3.73976263]
[1722213981515,2.42492,3299.1,3298.8,3.73976263]
[1722213981732,3.327256,3299.3,3298.8,3.73976263]
[1722213981879,2.42484,3299.2,3298.8,3.73976263]
[1722213983630,0.05256183,3299.7,3298.8,3.73976263]
[1722213983631,0.05256183,3299.7,3299.1,2.7]
[1722213983847,0.484782,3300.4,3299.5,2.7]
[1722213983848,2.42412,3300.2,3299.5,2.7]
[1722213983988,2.42393,3300.5,3300.0,2.7]
[1722213984185,2.42377,3300.7,3300.0,2.7]
[1722213984483,2.4238,3300.6,3300.0,2.7]
[1722213984824,0.49697295,3300.7,3300.0,2.7]
[1722213984825,2.42411,3300.2,3300.0,2.7]
[1722213985122,0.05254945,3300.8,3300.0,2.7]
[1722213985337,0.05254945,3300.8,3299.6,2.7]
[1722213985338,2.42416,3300.1,3299.6,2.7]
[1722213985682,2.4238,3300.6,3299.7,0.06950189]
[1722213985933,2.42438,3299.8,3299.7,0.06950189]
[1722213986220,2.42424,3300.0,3299.2,5.1907]
[1722213986526,2.42436,3299.9,3299.2,5.1907]
[1722213986839,2.42424,3300.0,3299.3,0.06976808]
[1722213987049,2.42446,3299.7,3299.3,0.06976808]
[1722213987252,2.42434,3299.9,3299.2,2.7]
[1722213987437,2.42434,3299.9,3299.3,0.06976808]
[1722213987438,2.42459,3299.6,3299.3,0.06976808]
[1722213987749,2.42442,3299.8,3299.2,2.7]
[1722213987913,2.97442,3299.8,3299.4,0.06970153]
[1722213988112,2.97442,3299.8,3299.2,2.7]
[1722213988364,2.42446,3299.7,3299.5,0.06963498]
[1722213988667,2.4246,3299.6,3299.2,2.7]
[1722213990055,2.97439,3299.8,3299.2,2.7]
[1722213990430,2.42426,3300.0,3299.6,2.7]
[1722213990658,2.74105533,3300.2,3299.6,2.7]
[1722213990953,0.83345786,3300.2,3299.6,2.7]
[1722213991170,2.42397,3300.4,3299.6,2.7]
[1722213991171,2.42395,3300.4,3299.7,2.3365]
[1722213991465,2.42383,3300.6,3300.0,2.7]
[1722213991630,0.31693665,3300.7,3300.0,2.7]
[1722213991830,0.59625026,3300.7,3300.0,2.7]
[1722213992039,2.4238,3300.6,3300.0,2.7]
[1722213992426,2.42388,3300.5,3300.0,2.7]
[1722213993355,2.4238,3300.6,3300.0,2.7]
[1722213994153,0.59625026,3300.7,3300.0,2.7]
[1722213994447,2.74065665,3300.7,3300.0,2.7]
[1722213995419,0.05254945,3300.8,3300.0,2.7]
[1722213995731,2.42388,3300.5,3300.0,2.7]
[1722213996066,0.05254945,3300.8,3300.1,0.06888161]
[1722213996366,2.4236,3300.9,3300.1,0.06888161]
[1722213997258,2.42366,3300.8,3300.1,0.06888161]
[1722213998833,2.42381,3300.6,3300.1,0.06888161]
[1722213999568,2.42387,3300.5,3300.1,0.06888161]
[1722214000543,2.42395,3300.4,3300.1,0.06888161]
[1722214001180,2.42385,3300.6,3300.1,0.06888161]
[1722214001540,4.64415168,3300.6,3300.1,0.06888161]
[1722214001962,2.42388,3300.5,3300.1,0.06888161]
[1722214003587,4.64576638,3300.5,3300.1,0.06888161]
[1722214003783,4.64584433,3300.5,3300.1,0.06888161]
[1722214005368,2.42388,3300.5,3300.1,0.06888161]
[1722214005564,2.22196433,3300.5,3300.1,0.06888161]
[1722214005760,2.22183782,3300.5,3300.1,0.06888161]
[1722214005965,2.22183782,3300.5,3300.2,2.3419]
[1722214006165,2.22183782,3300.7,3300.2,2.3419]
[1722214006405,2.22173378,3300.7,3300.3,0.068644]
[1722214006765,2.22173378,3300.7,3300.2,2.3419]
[1722214007205,2.22173378,3300.7,3300.3,0.06864216]
[1722214007605,2.22173378,3300.7,3300.2,2.3419]
[1722214007805,4.64555378,3300.6,3300.2,2.3419]
[1722214008186,4.64555378,3300.6,3300.3,0.06861832]
[1722214008371,4.64555378,3300.6,3300.2,2.3419]
[1722214008569,2.42388,3300.5,3300.0,2.7]
[1722214008774,2.22173378,3300.5,3300.0,2.7]
[1722214008973,0.51618009,3300.7,3300.1,0.06875136]
[1722214008974,2.22173378,3300.6,3300.1,0.06875136]
[1722214009276,2.73789217,3300.6,3300.1,0.06875136]
[1722214009517,0.51615839,3300.6,3300.1,0.06875136]
[1722214009724,5.16191326,3300.6,3300.1,0.06875136]
[1722214009880,2.42387,3300.5,3300.1,0.06875136]
[1722214010682,4.64575487,3300.6,3300.1,0.06875136]
[1722214010884,2.22195487,3300.6,3300.1,0.06875136]
[1722214011468,2.22195487,3300.7,3300.1,0.06875136]
[1722214012707,2.42372,3300.7,3300.1,0.06875136]
[1722214012905,4.64560591,3300.7,3300.1,0.06875136]
[1722214013270,5.40416422,3300.7,3300.1,0.06875136]
[1722214013474,2.22188591,3300.6,3300.1,0.06875136]
[1722214014909,2.98044422,3300.7,3300.1,0.06875136]
[1722214015109,2.22188591,3300.7,3300.4,2.7]
[1722214015330,2.22175342,3300.7,3300.5,2.3401]
[1722214015468,2.22175342,3301.0,3300.6,0.50401]
[1722214015672,2.22175342,3301.4,3301.1,2.3401]
[1722214015872,2.22108906,3301.7,3301.3,2.7]
[1722214016116,2.42289,3301.9,3301.4,0.06780433]
[1722214016117,2.22108906,3301.8,3301.4,0.06780433]
[1722214016300,2.42289,3301.9,3301.3,2.7]
[1722214016301,4.64397906,3301.9,3301.3,2.7]
[1722214016501,5.38238542,3301.9,3301.3,2.7]
[1722214016817,2.22108906,3301.8,3301.3,2.7]
[1722214017049,2.22108906,3301.7,3301.3,2.7]
[1722214017318,2.22108906,3301.8,3301.3,2.7]
[1722214017615,2.973,3301.7,3301.3,2.7]
[1722214017825,3.80853854,3301.7,3301.3,2.7]
[1722214019105,3.80853854,3301.7,3300.9,2.7]
[1722214019106,2.42318,3301.5,3300.9,2.7]
[1722214019273,2.42318,3301.5,3301.4,0.06780433]
[1722214019480,2.42318,3301.5,3300.9,2.7]
[1722214019718,2.42318,3301.5,3301.0,0.06807025]
[1722214020522,2.42306,3301.6,3301.0,0.06807025]
[1722214020670,2.42306,3301.6,3301.1,0.27680702]
[1722214020907,0.55,3301.7,3301.0,0.06807025]
[1722214021112,4.71648,3301.3,3301.2,0.06782361]
[1722214021361,4.84672,3301.2,3301.1,0.06551139]
[1722214021513,4.84672,3301.2,3300.5,2.7]
[1722214021514,2.42345,3301.1,3300.5,2.7]
[1722214021916,3.35922319,3301.2,3300.5,2.7]
[1722214022116,2.42336,3301.2,3300.5,2.7]
[1722214022416,2.42351,3301.0,3300.5,2.7]
[1722214023514,2.42351,3301.0,3299.8,2.2907]
[1722214023515,2.4238,3300.6,3299.8,2.2907]
[1722214023714,2.42378,3300.7,3299.9,2.7]
[1722214024016,4.64254633,3300.7,3299.9,2.7]
[1722214024218,2.9736,3300.9,3300.3,2.7]
[1722214024439,2.21988213,3300.9,3300.0,2.42421]
[1722214024654,4.64325213,3301.2,3300.7,2.7]
[1722214024863,2.42337,3301.2,3300.7,2.7]
[1722214025028,4.64313213,3301.4,3300.7,2.7]
[1722214025228,2.42328,3301.3,3300.7,2.7]
[1722214025438,4.64316213,3301.3,3300.7,2.7]
[1722214025624,2.92650434,3301.4,3300.7,2.7]
[1722214025851,4.64307213,3301.5,3300.8,2.4873]
[1722214026215,2.21988213,3301.4,3300.8,2.4873]
[1722214027190,2.21988213,3301.3,3300.8,2.4873]
[1722214027493,2.22117559,3301.3,3300.8,2.4873]
[1722214028093,2.22117559,3301.4,3301.1,2.7]
[1722214028401,5.04676367,3301.7,3301.1,2.7]
[1722214028402,2.22117559,3301.7,3301.2,0.27]
[1722214028589,2.22117559,3301.8,3301.2,0.27]
[1722214028965,2.22117559,3301.9,3301.2,0.27]
[1722214029175,2.22117559,3301.8,3301.2,0.27]
[1722214029548,2.22117559,3301.9,3301.5,2.7]
[1722214029757,2.22117559,3301.8,3301.5,2.7]
[1722214029978,2.22117559,3301.9,3301.5,2.7]
[1722214030190,2.22117559,3302.0,3301.5,2.7]
[1722214030454,2.22117559,3302.1,3301.5,2.7]
[1722214030796,2.42258,3302.3,3301.5,2.7]
[1722214030797,2.22117559,3302.2,3301.5,2.7]
[1722214031101,2.7703673,3302.1,3301.5,2.7]
[1722214031464,2.2203673,3302.2,3301.6,0.06057425]
[1722214031684,2.2203673,3302.3,3301.5,5.0471]
[1722214032004,2.53772159,3302.4,3301.9,2.7]
[1722214032223,0.55,3302.3,3301.9,2.7]
[1722214032721,0.31735429,3302.4,3301.9,2.7]
[1722214032881,2.2203673,3302.6,3302.0,0.06491319]
[1722214033221,0.46426373,3302.5,3302.0,0.06491319]
[1722214033418,5.10583991,3302.5,3302.0,0.06491319]
[1722214033579,2.42248,3302.4,3301.6,3.73976263]
[1722214033779,2.42248,3302.4,3302.1,0.06484675]
[1722214034008,2.42248,3302.4,3301.6,3.73976263]
[1722214034313,2.42248,3302.4,3302.2,0.06478031]
[1722214034518,2.68342991,3302.5,3301.6,3.73976263]
[1722214034717,0.55,3302.4,3302.3,0.064524]
[1722214034922,4.64155618,3302.6,3301.6,3.73976263]
[1722214034923,0.55,3302.5,3301.6,3.73976263]
[1722214035224,0.55,3302.5,3302.3,0.06433413]
[1722214035392,0.51915562,3302.4,3301.6,3.73976263]
[1722214035587,2.21916618,3302.6,3302.4,0.0642677]
[1722214035934,2.21916618,3302.7,3301.6,3.73976263]
[1722214036102,2.21916618,3302.7,3301.9,2.7]
[1722214036288,2.42226,3302.7,3302.5,0.06419762]
[1722214036492,2.42226,3302.7,3302.6,0.06413302]
[1722214036689,3.46813321,3302.7,3302.6,0.06413302]
[1722214036903,3.46813321,3302.7,3302.0,11.01976263]
[1722214036904,2.42241,3302.5,3302.0,11.01976263]
[1722214037422,5.68617254,3302.7,3302.0,11.01976263]
[1722214037595,3.46813321,3302.7,3302.0,11.01976263]
[1722214038039,2.42233,3302.6,3302.0,11.01976263]
[1722214039313,0.55,3302.7,3302.0,12.39173889]
[1722214039625,0.55,3302.7,3302.0,11.01976263]
[1722214039626,2.97227,3302.7,3302.0,11.01976263]
[1722214039833,2.42239,3302.6,3302.0,11.01976263]
[1722214039999,2.42262,3302.3,3302.0,11.01976263]
[1722214040199,2.664882,3302.3,3302.0,11.01976263]
[1722214040404,2.42241,3302.5,3302.0,11.01976263]
[1722214040405,4.84486,3302.5,3302.0,11.01976263]
[1722214040641,2.97249,3302.4,3302.0,11.01976263]
[1722214040826,2.42255,3302.3,3302.0,11.01976263]
[1722214041024,2.42255,3302.3,3301.8,3.73976263]
[1722214041225,2.42263,3302.2,3301.6,3.73976263]
[1722214041624,2.4225,3302.4,3301.6,3.73976263]
[1722214041806,2.42265,3302.2,3301.6,3.73976263]
[1722214042557,2.42292,3301.9,3301.6,3.73976263]
[1722214042705,2.42244,3302.5,3301.6,3.73976263]
[1722214042706,2.42281,3302.0,3301.6,3.73976263]
[1722214043045,2.42299,3301.7,3301.6,3.73976263]
[1722214043347,2.907582,3301.7,3301.6,3.73976263]
[1722214043550,2.42299,3301.7,3301.6,3.73976263]
[1722214043863,2.42321,3301.4,3301.3,3.73976263]
[1722214044158,2.42311,3301.6,3301.1,3.73976263]
[1722214044311,2.42297,3301.8,3301.1,3.73976263]
[1722214044509,2.21666916,3302.1,3301.4,2.7]
[1722214044819,2.42265,3302.2,3301.4,2.7]
[1722214045221,2.97271,3302.1,3301.4,2.7]
[1722214045425,0.55,3302.1,3301.4,2.7]
[1722214045654,2.42285,3301.9,3301.4,2.7]
[1722214047158,2.42292,3301.8,3301.4,2.7]
[1722214047727,2.42292,3301.8,3301.5,0.06499536]
[1722214048322,0.242292,3301.8,3301.5,0.06499536]
[1722214048620,0.55,3302.1,3301.5,0.06499536]
[1722214048621,4.84612,3301.6,3301.5,0.06499536]
[1722214048861,2.42321,3301.4,3301.3,3.73976263]
[1722214049065,2.42321,3301.4,3301.1,3.73976263]
[1722214049282,2.42336,3301.2,3301.1,3.73976263]
[1722214049768,5.39672,3301.2,3301.1,3.73976263]
[1722214050727,5.39672,3301.2,3300.2,2.344]
[1722214050728,4.84716,3300.9,3300.8,3.73976263]
[1722214050930,5.39716,3300.9,3300.8,3.73976263]
[1722214051578,2.42358,3300.9,3300.8,3.73976263]
[1722214051932,2.42345,3301.1,3300.8,3.73976263]
[1722214051933,4.84693,3301.1,3300.8,3.73976263]
[1722214052166,0.55,3301.0,3300.8,3.73976263]
[1722214052736,2.4233,3301.3,3300.8,4.11373889]
[1722214053164,4.6422675,3301.5,3300.8,4.11373889]
[1722214053480,2.42316,3301.5,3300.8,4.11373889]
[1722214054029,2.2191075,3301.8,3300.9,2.7]
[1722214054285,2.2516,3302.3,3300.6,3.73976263]
[1722214054286,2.42334,3301.3,3300.6,3.73976263]
[1722214054428,2.2191075,3301.6,3300.5,9.98]
[1722214054429,2.42336,3301.2,3300.5,9.98]
[1722214054878,2.42327,3301.4,3300.5,9.98]
[1722214055029,2.42288,3301.9,3300.5,9.98]
[1722214055030,4.6422175,3301.6,3300.5,9.98]
[1722214055233,2.42336,3301.2,3300.5,9.98]
[1722214055453,2.42336,3301.2,3300.6,1.37197626]
[1722214056045,2.42344,3301.1,3300.6,1.37197626]
[1722214056448,2.42344,3301.1,3300.5,9.98]
[1722214056449,2.21997156,3301.4,3300.5,7.28]
[1722214056677,2.42366,3300.8,3300.5,7.28]
[1722214056851,2.4238,3300.6,3300.5,7.28]
[1722214057049,5.5956614,3301.3,3300.4,3.73976263]
[1722214057050,2.21997156,3300.9,3300.4,3.73976263]
[1722214057262,2.42387,3300.5,3300.4,3.73976263]
[1722214057627,6.10979118,3300.5,3300.4,3.73976263]
[1722214057874,8.32976274,3300.5,3300.4,3.73976263]
[1722214058371,6.10979118,3300.5,3300.4,3.73976263]
[1722214058579,2.42416,3300.1,3300.0,3.73976263]
[1722214059151,2.97416,3300.1,3300.0,3.73976263]
[1722214059339,5.39832,3300.1,3300.0,3.73976263]
[1722214060244,2.97416,3300.1,3300.0,3.73976263]
[1722214060468,0.55,3300.1,3300.0,3.73976263]
[1722214060679,0.55,3300.2,3300.0,3.73976263]
[1722214060957,2.42409,3300.2,3300.0,3.73976263]
[1722214061167,0.55,3300.1,3300.0,3.73976263]
[1722214061376,2.42403,3300.3,3300.0,3.73976263]
[1722214061537,2.4241,3300.2,3300.0,3.73976263]
[1722214061942,2.42428,3300.0,3299.7,3.73976263]
[1722214062138,2.22106315,3300.5,3299.6,3.73976263]
[1722214062343,2.42441,3299.8,3299.6,3.73976263]
[1722214062538,2.42446,3299.7,3299.6,3.73976263]
[1722214062792,5.39892,3299.7,3299.6,3.73976263]
[1722214062941,5.39892,3299.7,3299.6,0.06679049]
[1722214063142,5.39892,3299.7,3299.2,3.73976263]
[1722214063143,2.42466,3299.5,3299.2,3.73976263]
[1722214063343,2.42466,3299.5,3299.3,0.06699014]
[1722214063543,0.55,3299.4,3299.3,0.06699014]
[1722214063798,0.55,3299.4,3299.2,3.73976263]
[1722214063799,2.42447,3299.7,3299.2,3.73976263]
[1722214063951,2.42434,3299.9,3299.3,0.06699014]
[1722214064156,0.55,3299.8,3299.3,0.06699014]
[1722214064692,2.97439,3299.8,3299.4,0.06692359]
[1722214064882,0.55,3299.8,3299.4,0.06692359]
[1722214065088,2.666519,3300.2,3299.2,3.73976263]
[1722214065089,2.97431,3299.9,3299.2,3.73976263]
[1722214065289,2.97431,3299.9,3299.5,0.06685704]
[1722214065599,2.666529,3300.2,3299.3,2.7]
[1722214065749,2.42404,3300.3,3299.6,0.06679049]
[1722214065947,2.42411,3300.2,3299.3,5.026]
[1722214066170,0.31752754,3300.5,3299.3,5.026]
[1722214066171,2.42434,3299.9,3299.3,5.026]
[1722214066370,2.42434,3299.9,3299.4,0.06699488]
[1722214066569,2.42434,3299.9,3299.2,3.73976263]
[1722214066807,2.42434,3299.9,3299.3,0.06703584]
[1722214067005,0.55,3299.8,3299.3,0.06703584]
[1722214067207,2.97439,3299.8,3299.2,4.24687918]
[1722214067410,2.97439,3299.8,3299.3,0.06733368]
[1722214067711,2.97439,3299.8,3299.2,3.73976263]
[1722214067911,2.97439,3299.8,3299.4,0.06726712]
[1722214068214,2.97439,3299.8,3299.5,0.06720057]
[1722214068507,2.97439,3299.8,3299.2,3.73976263]
[1722214068694,0.55,3299.8,3299.6,0.06713402]
[1722214068900,0.55,3299.8,3299.2,3.73976263]
[1722214069068,0.55,3299.9,3299.7,0.06706748]
[1722214069268,0.55,3299.9,3299.2,3.73976263]
[1722214069468,0.55,3299.9,3299.8,0.06700277]
[1722214069711,0.55,3299.9,3299.2,3.73976263]
[1722214069891,0.55,3299.9,3299.8,0.06700277]
[1722214070104,0.55,3299.9,3299.2,3.73976263]
[1722214070281,2.42417,3300.1,3299.8,0.06700277]
[1722214070481,2.42417,3300.1,3299.2,3.73976263]
[1722214070883,2.42424,3300.0,3299.3,0.0673355]
[1722214071109,2.42432,3299.9,3299.3,0.0673355]
[1722214072023,2.42447,3299.7,3299.3,0.0673355]
[1722214072329,2.42453,3299.7,3299.2,3.73976263]
[1722214072531,2.42455,3299.6,3299.4,0.06726895]
[1722214072672,2.42468,3299.4,3299.3,0.06733368]
[1722214072873,2.42468,3299.4,3299.2,3.73976263]
[1722214073079,2.97475,3299.3,3299.2,3.73976263]
[1722214073374,0.55,3299.3,3299.1,3.73976263]
[1722214073593,2.42453,3299.6,3299.1,3.73976263]
[1722214073799,0.55,3299.5,3299.1,3.73976263]
[1722214075431,2.42469,3299.4,3299.1,3.73976263]
[1722214075635,0.55,3299.3,3299.1,3.73976263]
[1722214076600,2.42483,3299.2,3299.1,3.73976263]
[1722214076803,2.42483,3299.2,3298.7,3.73976263]
[1722214077440,2.42491,3299.1,3298.7,3.73976263]
[1722214077913,2.42491,3299.1,3298.8,0.06769942]
[1722214078318,0.539974,3299.1,3298.7,3.73976263]
[1722214078498,2.97497,3299.0,3298.9,0.0654228]
[1722214078699,2.42497,3299.0,3298.8,0.065597]
[1722214078935,0.55,3298.9,3298.7,3.73976263]
[1722214079506,2.42512,3298.8,3298.7,3.73976263]
[1722214081403,4.85024,3298.8,3298.7,3.73976263]
[1722214081710,5.940264,3298.8,3298.7,3.73976263]
[1722214082031,3.515144,3298.8,3298.7,3.73976263]